[Event "XIV American Continental-ch 2019"]
[Site "Sao Paulo"]
[Date "2019.07.07"]
[Round "3.18"]
[White "Cadilhac, Igor Tokuichi Kikuch"]
[Black "Vazquez, Guillermo"]
[Result "1/2-1/2"]
[ECO "E46"]
[WhiteElo "2291"]
[BlackElo "2483"]
[Annotator "ChessBase"]
[PlyCount "81"]
[EventDate "2019.07.05"]
[EventType "swiss"]
[EventCountry "BRA"]
[SourceTitle "playchess.com"]
[Source "ChessBase"]
[SourceQuality "1"]
[TimeControl "40/5400+30:1800+30"]

1. d4 {[%emt 0:00:00]} Nf6 {[%emt 0:00:00]} 2. c4 {[%emt 0:00:00]} e6 {[%emt 0:01:20]} 3. Nc3 {[%emt 0:00:00]} Bb4 {[%emt 0:00:09]} 4. e3 {[%emt 0:00:00]} O-O {[%emt 0:00:59]} 5. Nge2 {[%emt 0:00:13]} Re8 {[%emt 0:02:52]} 6. a3 {[%emt 0:00:24]} Bf8 {[%emt 0:00:09]} 7. e4 {[%emt 0:04:23]} d5 {[%emt 0:09:41]} 8. e5 {[%emt 0:03:03]} Nfd7 {[%emt 0:01:07]} 9. c5 {[%emt 0:01:04]} b6 {[%emt 0:02:30]} 10. b4 {[%emt 0:00:07]} a5 {[%emt 0:00:42]} 11. Be3 {[%emt 0:04:07]} c6 {[%emt 0:10:01]} 12. Nf4 {[%emt 0:20:43]} axb4 {[%emt 0:08:47]} 13. axb4 {[%emt 0:00:11]} Rxa1 {[%emt 0:00:04]} 14. Qxa1 {[%emt 0:00:09]} bxc5 {[%emt 0:00:05]} 15. bxc5 {[%emt 0:00:24]} Nxe5 {[%emt 0:00:12]} 16. dxe5 {[%emt 0:07:49]} d4 {[%emt 0:00:05]} 17. Ne4 {[%emt 0:00:45]} dxe3 {[%emt 0:00:28]} 18. Bd3 {[%emt 0:00:39]} Nd7 {[%emt 0:05:11]} 19. Qc3 {[%emt 0:02:01]} g6 {[%emt 0:04:48]} 20. fxe3 {[%emt 0:15:45]} Bg7 {[%emt 0:00:22]} 21. Qa3 {[%emt 0:06:11]} Bxe5 {[%emt 0:03:53]} 22. O-O {[%emt 0:00:03]} Nf6 {[%emt 0:06:01]} 23. Nxf6+ {[%emt 0:00:32]} Bxf6 {[%emt 0:00:09]} 24. Be4 {[%emt 0:00:29]} Bd7 {[%emt 0:06:18]} 25. Nd3 {[%emt 0:06:37]} Bg7 {[%emt 0:03:12]} 26. Qa7 {[%emt 0:06:40]} Qc8 {[%emt 0:06:30]} 27. Nb4 {[%emt 0:02:48]} Bh6 {[%emt 0:03:56]} 28. Kf2 {[%emt 0:04:50]} e5 {[%emt 0:04:38]} 29. Rd1 {[%emt 0:01:49]} Bg4 {[%emt 0:02:41]} 30. Rd6 {[%emt 0:00:46]} Bf8 {[%emt 0:01:06]} 31. Rxc6 {[%emt 0:05:50]} Qd8 {[%emt 0:00:09]} 32. Nd3 {[%emt 0:04:18]} Qh4+ {[%emt 0:03:55]} 33. Kg1 {[%emt 0:00:01]} Bh6 {[%emt 0:02:13]} 34. Bd5 {[%emt 0:01:53]} Bxe3+ {[%emt 0:00:15]} 35. Kh1 {[%emt 0:00:02]} Rf8 {[%emt 0:00:40]} 36. g3 {[%emt 0:02:46]} Qd8 {[%emt 0:03:49]} 37. Rd6 {[%emt 0:00:30]} Qg5 {[%emt 0:00:02]} 38. Qa1 {[%emt 0:00:25]} e4 {[%emt 0:01:27]} 39. Bxe4 {[%emt 0:00:29]} Qf5 {[%emt 0:00:07]} 40. Bg2 {[%emt 0:00:25]} Bf3 {[%emt 0:05:43]} 41. Qf6 {[%emt 0:14:27]} 1/2-1/2

[Event "XIV American Continental-ch 2019"]
[Site "Sao Paulo"]
[Date "2019.07.07"]
[Round "3.19"]
[White "Santiago, Yago De Moura"]
[Black "Luz, Arthur Nader"]
[Result "1-0"]
[ECO "E92"]
[WhiteElo "2473"]
[BlackElo "2114"]
[Annotator "ChessBase"]
[PlyCount "79"]
[EventDate "2019.07.05"]
[EventType "swiss"]
[EventCountry "BRA"]
[SourceTitle "playchess.com"]
[Source "ChessBase"]
[SourceQuality "1"]
[TimeControl "40/5400+30:1800+30"]

1. d4 Nf6 2. c4 g6 3. Nc3 Bg7 4. e4 d6 5. Nf3 O-O 6. Be2 {[%emt 0:16:25]} e5 {[%emt 0:01:01]} 7. d5 {[%emt 0:00:00]} a5 {[%emt 0:02:38]} 8. Bg5 {[%emt 0:00:00]} Na6 {[%emt 0:00:56]} 9. Nd2 {[%emt 0:00:00]} Qe8 {[%emt 0:02:22]} 10. O-O {[%emt 0:00:00]} Nc5 {[%emt 0:07:33]} 11. b3 {[%emt 0:00:00]} h6 {[%emt 0:09:36]} 12. Be3 {[%emt 0:00:00]} Nfd7 {[%emt 0:04:48]} 13. Nb5 {[%emt 0:00:00]} Na6 {[%emt 0:05:25]} 14. a3 {[%emt 0:00:00]} f5 {[%emt 0:00:17]} 15. f3 {[%emt 0:00:00]} Nf6 {[%emt 0:01:24]} 16. b4 {[%emt 0:00:00]} Bd7 {[%emt 0:04:04]} 17. bxa5 {[%emt 0:00:10]} Qe7 {[%emt 0:06:19]} 18. Rb1 {[%emt 0:03:12]} Rfb8 {[%emt 0:08:51]} 19. c5 {[%emt 0:03:11]} Bxb5 {[%emt 0:12:54]} 20. Rxb5 {[%emt 0:00:40]} Nxc5 {[%emt 0:00:37]} 21. Bxc5 {[%emt 0:01:02]} dxc5 {[%emt 0:00:06]} 22. Qb3 {[%emt 0:00:17]} Kh8 {[%emt 0:04:14]} 23. Rxb7 {[%emt 0:01:10]} Rd8 {[%emt 0:05:51]} 24. Rb1 {[%emt 0:08:08]} Rxa5 {[%emt 0:05:50]} 25. Nc4 {[%emt 0:00:25]} Raa8 {[%emt 0:00:04]} 26. d6 Rxd6 {[%emt 0:00:41]} 27. Nxd6 {[%emt 0:00:28]} Qxd6 {[%emt 0:00:08]} 28. Rd1 {[%emt 0:06:50]} Qc6 {[%emt 0:02:54]} 29. Rb8+ {[%emt 0:00:25]} Rxb8 {[%emt 0:02:57]} 30. Qxb8+ {[%emt 0:00:09]} Kh7 {[%emt 0:00:09]} 31. Qb5 {[%emt 0:01:39]} Qe6 {[%emt 0:02:30]} 32. Bc4 {[%emt 0:00:24]} Qe7 {[%emt 0:00:05]} 33. Qc6 {[%emt 0:01:25]} fxe4 {[%emt 0:04:53]} 34. fxe4 {[%emt 0:00:43]} Nh5 {[%emt 0:01:40]} 35. Qa8 {[%emt 0:02:01]} Nf6 {[%emt 0:01:55]} 36. Qd8 {[%emt 0:00:56]} Qxd8 {[%emt 0:03:10]} 37. Rxd8 {[%emt 0:00:08]} h5 {[%emt 0:00:03]} 38. a4 {[%emt 0:00:20]} Nxe4 {[%emt 0:01:05]} 39. a5 {[%emt 0:00:12]} Nd6 {[%emt 0:01:34]} 40. Rxd6 {[%emt 0:00:08]} 1-0

[Event "XIV American Continental-ch 2019"]
[Site "Sao Paulo"]
[Date "2019.07.07"]
[Round "3.20"]
[White "Garcia Cardenas, Pablo"]
[Black "Sato, Leticia Miho"]
[Result "1-0"]
[ECO "D61"]
[WhiteElo "2443"]
[BlackElo "1693"]
[Annotator "NA"]
[PlyCount "109"]
[EventDate "2019.07.05"]
[EventType "swiss"]
[EventCountry "BRA"]
[SourceTitle "playchess.com"]
[Source "ChessBase"]
[SourceQuality "1"]
[TimeControl "40/5400+30:1800+30"]

1. d4 {[%emt 0:00:00]} d5 {[%emt 0:02:41]} 2. c4 {[%emt 0:00:00]} e6 {[%emt 0:00:06]} 3. Nc3 {[%emt 0:00:00]} Nf6 {[%emt 0:00:23]} 4. Nf3 {[%emt 0:01:01]} Be7 {[%emt 0:00:11]} 5. Bg5 {[%emt 0:00:06]} Nbd7 {[%emt 0:00:23]} 6. e3 {[%emt 0:00:29]} O-O {[%emt 0:00:48]} 7. Qc2 {[%emt 0:03:05]} h6 {[%emt 0:03:25]} 8. Bh4 {[%emt 0:00:32]} b6 {[%emt 0:02:18]} 9. cxd5 {[%emt 0:04:42]} exd5 {[%emt 0:01:36]} 10. Bd3 {[%emt 0:00:22]} Bb7 {[%emt 0:00:38]} 11. O-O {[%emt 0:02:36]} Ne4 {[%emt 0:05:58]} 12. Nxd5 {[%emt 0:05:33]} Bxd5 {[%emt 0:09:13]} 13. Bxe4 {[%emt 0:00:42]} Bxe4 {[%emt 0:00:37]} 14. Qxe4 {[%emt 0:00:07]} Bxh4 {[%emt 0:00:44]} 15. Qxh4 {[%emt 0:01:12]} c5 {[%emt 0:02:35]} 16. Qf4 {[%emt 0:05:40]} cxd4 {[%emt 0:06:04]} 17. Rfd1 {[%emt 0:04:00]} Qf6 {[%emt 0:12:05]} 18. Qxf6 {[%emt 0:00:56]} Nxf6 {[%emt 0:00:07]} 19. Nxd4 {[%emt 0:00:05]} Rac8 {[%emt 0:00:32]} 20. Rac1 {[%emt 0:00:15]} Rfd8 {[%emt 0:02:22]} 21. Kf1 {[%emt 0:01:14]} g6 {[%emt 0:06:47]} 22. Ke2 {[%emt 0:01:13]} Ne4 {[%emt 0:02:31]} 23. f3 {[%emt 0:04:13]} Nc5 {[%emt 0:04:36]} 24. b4 {[%emt 0:16:24]} Na4 {[%emt 0:05:56]} 25. Nb5 {[%emt 0:03:02]} a6 {[%emt 0:07:24]} 26. Rxd8+ {[%emt 0:00:35]} Rxd8 {[%emt 0:00:06]} 27. Nd4 {[%emt 0:00:09]} Rd6 {[%emt 0:01:58]} 28. Kd3 {[%emt 0:03:54]} a5 {[%emt 0:08:22]} 29. a3 {[%emt 0:02:24]} Kg7 {[%emt 0:01:45]} 30. Kc4 {[%emt 0:02:30]} axb4 {[%emt 0:02:33]} 31. axb4 {[%emt 0:00:25]} Rd8 {[%emt 0:02:55]} 32. Kb5 {[%emt 0:05:40]} Nb2 {[%emt 0:02:11]} 33. Rb1 {[%emt 0:00:45]} Nd3 {[%emt 0:00:44]} 34. Kxb6 {[%emt 0:02:24]} Rb8+ {[%emt 0:00:43]} 35. Ka5 {[%emt 0:00:07]} Ra8+ {[%emt 0:00:35]} 36. Kb5 {[%emt 0:00:02]} Ra2 {[%emt 0:01:05]} 37. Kc4 {[%emt 0:00:25]} Ne5+ {[%emt 0:00:19]} 38. Kd5 {[%emt 0:00:05]} Nd7 {[%emt 0:02:35]} 39. g4 {[%emt 0:04:48]} Rxh2 {[%emt 0:00:17]} 40. b5 {[%emt 0:00:08]} Rd2 {[%emt 0:01:47]} 41. b6 {[%emt 0:32:03]} Rd3 {[%emt 0:30:59]} 42. e4 {[%emt 0:00:48]} h5 {[%emt 0:00:00]} 43. gxh5 {[%emt 0:00:00]} gxh5 {[%emt 0:00:00]} 44. b7 {[%emt 0:00:00]} Nb8 {[%emt 0:00:00]} 45. Rg1+ {[%emt 0:00:00]} Kh7 {[%emt 0:00:00]} 46. Kc4 {[%emt 0:00:00]} Rd2 {[%emt 0:00:00]} 47. Kc3 {[%emt 0:00:00]} Rf2 {[%emt 0:00:00]} 48. Rg5 {[%emt 0:00:00]} Rh2 {[%emt 0:00:00]} 49. Nf5 {[%emt 0:00:00]} Rh3 {[%emt 0:00:00]} 50. Rg7+ {[%emt 0:00:00]} Kh8 {[%emt 0:00:00]} 51. Rxf7 {[%emt 0:00:00]} Rxf3+ {[%emt 0:00:00]} 52. Kc4 {[%emt 0:00:00]} Nc6 {[%emt 0:00:00]} 53. Kd5 {[%emt 0:00:00]} Rc3 {[%emt 0:00:00]} 54. Rc7 {[%emt 0:00:00]} Nb4+ {[%emt 0:00:00]} 55. Ke5 {[%emt 0:00:00]} 1-0

[Event "XIV American Continental-ch 2019"]
[Site "Sao Paulo"]
[Date "2019.07.07"]
[Round "3.21"]
[White "Curi, Gabriel"]
[Black "Quintiliano Pinto, Renato R."]
[Result "0-1"]
[ECO "B51"]
[WhiteElo "2185"]
[BlackElo "2443"]
[Annotator "RC"]
[PlyCount "142"]
[EventDate "2019.07.05"]
[EventType "swiss"]
[EventCountry "BRA"]
[SourceTitle "playchess.com"]
[Source "ChessBase"]
[SourceQuality "1"]
[TimeControl "40/5400+30:1800+30"]

1. e4 {[%emt 0:00:00]} c5 {[%emt 0:01:17]} 2. Nf3 d6 {[%emt 0:02:08]} 3. Bb5+ {[%emt 0:00:01]} Nd7 {[%emt 0:00:12]} 4. c3 {[%emt 0:00:24]} Ngf6 {[%emt 0:01:07]} 5. Qe2 {[%emt 0:00:25]} a6 {[%emt 0:00:38]} 6. Ba4 {[%emt 0:00:16]} b5 {[%emt 0:02:08]} 7. Bc2 {[%emt 0:00:08]} Bb7 {[%emt 0:00:42]} 8. d4 {[%emt 0:00:50]} e6 {[%emt 0:08:02]} 9. O-O {[%emt 0:12:41]} Be7 {[%emt 0:07:32]} 10. Nbd2 {[%emt 0:04:13]} cxd4 {[%emt 0:11:52]} 11. cxd4 {[%emt 0:02:29]} Qc7 {[%emt 0:00:25]} 12. Bd3 {[%emt 0:06:46]} O-O {[%emt 0:01:32]} 13. a4 {[%emt 0:12:15]} bxa4 {[%emt 0:12:26]} 14. Rxa4 {[%emt 0:00:31]} a5 {[%emt 0:00:24]} 15. Rc4 {[%emt 0:11:28]} Qb6 {[%emt 0:03:28]} 16. Rc3 {[%emt 0:02:00]} Rfc8 {[%emt 0:02:29]} 17. Rb3 {[%emt 0:08:59]} Qc7 {[%emt 0:00:43]} 18. Rc3 {[%emt 0:00:12]} Qd8 {[%emt 0:02:23]} 19. Rxc8 {[%emt 0:04:50]} Rxc8 {[%emt 0:03:57]} 20. Ba6 {[%emt 0:05:27]} Bxa6 {[%emt 0:03:42]} 21. Qxa6 {[%emt 0:01:00]} Qc7 {[%emt 0:00:07]} 22. h3 {[%emt 0:00:57]} d5 {[%emt 0:02:36]} 23. e5 {[%emt 0:01:04]} Nb8 {[%emt 0:00:10]} 24. Qb5 {[%emt 0:03:06]} Nfd7 {[%emt 0:00:37]} 25. Nb3 {[%emt 0:01:37]} Nc6 {[%emt 0:00:07]} 26. Bg5 {[%emt 0:08:34]} Rb8 {[%emt 0:00:07]} 27. Qd3 {[%emt 0:00:06]} Qb6 {[%emt 0:08:42]} 28. Nbd2 {[%emt 0:04:26]} Bxg5 {[%emt 0:02:22]} 29. Nxg5 {[%emt 0:00:07]} Nf8 {[%emt 0:02:44]} 30. Ngf3 {[%emt 0:03:53]} Qxb2 {[%emt 0:00:37]} 31. Rb1 {[%emt 0:01:53]} Qa2 {[%emt 0:00:05]} 32. Rxb8 {[%emt 0:00:14]} Nxb8 {[%emt 0:00:03]} 33. Qb5 {[%emt 0:01:08]} Nbd7 {[%emt 0:00:44]} 34. g3 {[%emt 0:01:19]} h6 {[%emt 0:03:23]} 35. Kg2 {[%emt 0:00:06]} a4 {[%emt 0:05:53]} 36. Nb1 {[%emt 0:02:30]} Qc2 {[%emt 0:00:15]} 37. Qb4 {[%emt 0:00:42]} Ng6 {[%emt 0:01:24]} 38. Nc3 {[%emt 0:00:45]} Nb6 {[%emt 0:00:23]} 39. h4 {[%emt 0:01:09]} Nc4 {[%emt 0:04:04]} 40. Nxa4 {[%emt 0:00:52]} Ne3+ {[%emt 0:00:55]} 41. Kg1 {[%emt 0:01:46]} Ng4 {[%emt 0:01:02]} 42. Nd2 {[%emt 0:02:43]} Qd1+ {[%emt 0:21:54]} 43. Nf1 {[%emt 0:02:59]} Nh2 {[%emt 0:02:28]} 44. Kxh2 {[%emt 0:04:56]} Qxf1 {[%emt 0:00:04]} 45. Qb2 {[%emt 0:04:39]} Ne7 {[%emt 0:01:15]} 46. Nc5 {[%emt 0:00:07]} Nc6 {[%emt 0:03:53]} 47. Nd7 {[%emt 0:02:15]} h5 {[%emt 0:03:10]} 48. Nb8 {[%emt 0:07:36]} Ne7 {[%emt 0:01:20]} 49. Nd7 {[%emt 0:00:06]} Nf5 {[%emt 0:01:21]} 50. Qb8+ {[%emt 0:03:59]} Kh7 {[%emt 0:00:04]} 51. Nf8+ {[%emt 0:00:19]} Kh6 {[%emt 0:00:05]} 52. Qb2 {[%emt 0:00:07]} Qd1 {[%emt 0:00:27]} 53. Qc3 {[%emt 0:03:24]} g6 {[%emt 0:01:03]} 54. Nd7 {[%emt 0:01:36]} Qxd4 {[%emt 0:01:42]} 55. Qc1+ {[%emt 0:00:06]} Kg7 {[%emt 0:00:05]} 56. Kg1 {[%emt 0:01:04]} Qc4 {[%emt 0:03:32]} 57. Qg5 {[%emt 0:00:15]} Qc7 {[%emt 0:00:26]} 58. Nf6 {[%emt 0:00:48]} Kh8 {[%emt 0:01:17]} 59. Ne8 {[%emt 0:00:29]} Qe7 {[%emt 0:00:33]} 60. Nf6 {[%emt 0:00:02]} Qf8 {[%emt 0:00:30]} 61. g4 {[%emt 0:00:25]} hxg4 {[%emt 0:00:09]} 62. Nxg4 {[%emt 0:00:15]} Qe7 {[%emt 0:00:38]} 63. Nf6 {[%emt 0:00:19]} Qb4 {[%emt 0:00:05]} 64. Ng4 {[%emt 0:00:23]} Qe7 {[%emt 0:01:10]} 65. Nf6 {[%emt 0:00:07]} Qc7 {[%emt 0:00:18]} 66. h5 {[%emt 0:00:45]} Qxe5 {[%emt 0:00:17]} 67. hxg6 {[%emt 0:00:12]} fxg6 {[%emt 0:00:04]} 68. Qxg6 {[%emt 0:00:32]} Qe1+ {[%emt 0:00:03]} 69. Kh2 {[%emt 0:00:59]} Qxf2+ {[%emt 0:00:05]} 70. Kh3 {[%emt 0:00:01]} Qe3+ {[%emt 0:00:37]} 71. Kh2 {[%emt 0:01:46]} Qh6+ {[%emt 0:00:04]} 0-1

[Event "XIV American Continental-ch 2019"]
[Site "Sao Paulo"]
[Date "2019.07.07"]
[Round "3.22"]
[White "Lima, Darcy"]
[Black "Donoso Diaz, Sebastian"]
[Result "1-0"]
[ECO "A33"]
[WhiteElo "2543"]
[BlackElo "2239"]
[Annotator "ChessBase"]
[PlyCount "91"]
[EventDate "2019.07.05"]
[EventType "swiss"]
[EventCountry "BRA"]
[SourceTitle "playchess.com"]
[Source "ChessBase"]
[SourceQuality "1"]
[TimeControl "40/5400+30:1800+30"]

1. c4 {[%emt 0:00:00]} Nf6 {[%emt 0:02:15]} 2. Nc3 {[%emt 0:00:00]} c5 {[%emt 0:02:12]} 3. Nf3 {[%emt 0:00:00]} Nc6 {[%emt 0:01:51]} 4. d4 {[%emt 0:00:57]} cxd4 {[%emt 0:00:40]} 5. Nxd4 {[%emt 0:00:06]} e6 {[%emt 0:00:12]} 6. Ndb5 {[%emt 0:07:45]} d6 {[%emt 0:07:17]} 7. Bf4 {[%emt 0:00:40]} e5 {[%emt 0:11:14]} 8. Bg5 {[%emt 0:00:07]} a6 {[%emt 0:00:18]} 9. Bxf6 {[%emt 0:01:17]} gxf6 {[%emt 0:00:19]} 10. Na3 {[%emt 0:00:03]} Be6 {[%emt 0:14:28]} 11. g3 {[%emt 0:02:29]} f5 {[%emt 0:01:39]} 12. Bg2 {[%emt 0:00:36]} e4 {[%emt 0:00:37]} 13. f3 {[%emt 0:09:52]} h5 {[%emt 0:06:45]} 14. fxe4 {[%emt 0:02:20]} f4 {[%emt 0:00:29]} 15. gxf4 {[%emt 0:09:36]} Qh4+ {[%emt 0:05:38]} 16. Kd2 {[%emt 0:00:05]} Qxf4+ {[%emt 0:00:21]} 17. e3 {[%emt 0:00:11]} Qe5 {[%emt 0:04:52]} 18. Qf1 {[%emt 0:00:08]} Bh6 {[%emt 0:09:55]} 19. Nc2 {[%emt 0:02:08]} Na5 {[%emt 0:04:51]} 20. b3 {[%emt 0:02:50]} Rc8 {[%emt 0:01:15]} 21. Nd5 {[%emt 0:13:44]} b5 {[%emt 0:00:34]} 22. Qf6 {[%emt 0:00:47]} Qxf6 {[%emt 0:01:01]} 23. Nxf6+ {[%emt 0:00:08]} Kd8 {[%emt 0:08:22]} 24. cxb5 {[%emt 0:01:06]} Bg7 {[%emt 0:00:26]} 25. Raf1 {[%emt 0:00:43]} axb5 {[%emt 0:01:34]} 26. Nd4 {[%emt 0:03:41]} Nc6 {[%emt 0:03:45]} 27. Nxb5 {[%emt 0:01:15]} Ke7 {[%emt 0:00:36]} 28. Nd5+ {[%emt 0:00:43]} Bxd5 {[%emt 0:00:06]} 29. exd5 {[%emt 0:00:03]} Nb4 {[%emt 0:00:09]} 30. Be4 {[%emt 0:15:07]} Nxa2 {[%emt 0:00:52]} 31. Na7 {[%emt 0:00:09]} Ra8 {[%emt 0:04:22]} 32. Nc6+ {[%emt 0:00:20]} Ke8 {[%emt 0:00:03]} 33. Rhg1 {[%emt 0:03:03]} Nc3 {[%emt 0:04:28]} 34. Bc2 {[%emt 0:00:23]} Kf8 {[%emt 0:02:47]} 35. Rxg7 {[%emt 0:01:14]} Kxg7 {[%emt 0:00:15]} 36. Kxc3 {[%emt 0:00:32]} Rhe8 {[%emt 0:00:12]} 37. e4 {[%emt 0:00:13]} Ra6 {[%emt 0:01:04]} 38. b4 {[%emt 0:04:02]} Rea8 {[%emt 0:00:09]} 39. Bb3 {[%emt 0:03:20]} Kg6 {[%emt 0:00:58]} 40. h4 {[%emt 0:01:09]} Re8 {[%emt 0:00:35]} 41. b5 {[%emt 0:31:57]} Rb6 {[%emt 0:00:54]} 42. Bc4 {[%emt 0:00:00]} Ra8 {[%emt 0:01:03]} 43. Kb4 {[%emt 0:00:00]} Rb7 {[%emt 0:00:17]} 44. e5 {[%emt 0:00:00]} dxe5 {[%emt 0:00:30]} 45. Nxe5+ {[%emt 0:00:00]} Kg7 {[%emt 0:00:04]} 46. d6 {[%emt 0:00:00]} 1-0

[Event "XIV American Continental-ch 2019"]
[Site "Sao Paulo"]
[Date "2019.07.07"]
[Round "3.23"]
[White "Di Berardino, Diego Rafael"]
[Black "Guimaraes, Wagner Peixoto"]
[Result "1/2-1/2"]
[ECO "B85"]
[WhiteElo "2506"]
[BlackElo "2206"]
[Annotator "RC"]
[PlyCount "123"]
[EventDate "2019.07.05"]
[EventType "swiss"]
[EventCountry "BRA"]
[SourceTitle "playchess.com"]
[Source "ChessBase"]
[SourceQuality "1"]
[TimeControl "40/5400+30:1800+30"]

1. e4 {[%emt 0:00:00]} c5 {[%emt 0:00:30]} 2. Nf3 {[%emt 0:00:00]} e6 {[%emt 0:00:08]} 3. d4 {[%emt 0:00:15]} cxd4 {[%emt 0:00:07]} 4. Nxd4 {[%emt 0:00:03]} a6 {[%emt 0:00:17]} 5. Be2 {[%emt 0:02:18]} Nf6 {[%emt 0:01:21]} 6. Nc3 {[%emt 0:00:04]} Qc7 {[%emt 0:00:13]} 7. O-O {[%emt 0:00:13]} d6 {[%emt 0:02:43]} 8. f4 {[%emt 0:02:15]} Be7 {[%emt 0:02:15]} 9. Kh1 {[%emt 0:01:51]} O-O {[%emt 0:00:59]} 10. a4 {[%emt 0:08:16]} Nc6 {[%emt 0:00:14]} 11. Be3 {[%emt 0:00:09]} Bd7 {[%emt 0:00:39]} 12. Qe1 {[%emt 0:02:39]} Nxd4 {[%emt 0:05:19]} 13. Bxd4 {[%emt 0:01:48]} Bc6 {[%emt 0:00:21]} 14. Qg3 {[%emt 0:00:23]} g6 {[%emt 0:01:54]} 15. Bd3 {[%emt 0:11:46]} e5 {[%emt 0:02:48]} 16. fxe5 {[%emt 0:00:04]} Nh5 {[%emt 0:00:07]} 17. Qf2 {[%emt 0:03:12]} dxe5 {[%emt 0:00:09]} 18. Bb6 {[%emt 0:00:04]} Qc8 {[%emt 0:01:51]} 19. Bc4 {[%emt 0:11:36]} Nf4 {[%emt 0:14:54]} 20. b3 {[%emt 0:00:51]} Kg7 {[%emt 0:15:11]} 21. g3 {[%emt 0:09:28]} Nh3 {[%emt 0:02:13]} 22. Qg2 {[%emt 0:01:03]} Qg4 {[%emt 0:10:25]} 23. Nd5 {[%emt 0:08:51]} Ng5 {[%emt 0:07:43]} 24. Rae1 {[%emt 0:00:42]} Qd7 {[%emt 0:10:09]} 25. h4 {[%emt 0:10:10]} Ne6 {[%emt 0:00:27]} 26. Rd1 {[%emt 0:01:59]} Qe8 {[%emt 0:00:35]} 27. Kh2 {[%emt 0:02:45]} h5 {[%emt 0:01:18]} 28. Qf2 {[%emt 0:08:17]} f6 {[%emt 0:05:33]} 29. Rd3 {[%emt 0:01:27]} Rc8 {[%emt 0:03:19]} 30. Rfd1 {[%emt 0:06:06]} Bd8 {[%emt 0:05:35]} 31. Bxd8 {[%emt 0:01:19]} Rxd8 {[%emt 0:01:25]} 32. Nc7 {[%emt 0:00:45]} Nxc7 {[%emt 0:00:55]} 33. Rxd8 {[%emt 0:00:05]} Qxd8 {[%emt 0:00:34]} 34. Rxd8 {[%emt 0:00:05]} Rxd8 {[%emt 0:00:02]} 35. Qe3 {[%emt 0:02:21]} Rd4 {[%emt 0:01:06]} 36. c3 {[%emt 0:00:49]} Rd7 {[%emt 0:00:57]} 37. Bf1 {[%emt 0:01:30]} Ne8 {[%emt 0:02:15]} 38. Bh3 {[%emt 0:00:47]} Rd1 {[%emt 0:00:29]} 39. Qe2 {[%emt 0:01:27]} Rb1 {[%emt 0:01:11]} 40. Qd3 {[%emt 0:00:43]} Rxb3 {[%emt 0:00:53]} 41. Bd7 {[%emt 0:10:18]} Bxd7 {[%emt 0:07:41]} 42. Qxd7+ {[%emt 0:00:05]} Kf8 {[%emt 0:00:14]} 43. c4 {[%emt 0:03:55]} a5 {[%emt 0:04:40]} 44. Qd8 {[%emt 0:00:49]} Rb4 {[%emt 0:00:40]} 45. Qxa5 {[%emt 0:11:33]} Rxc4 {[%emt 0:00:06]} 46. Qb5 {[%emt 0:00:07]} Rc7 {[%emt 0:00:02]} 47. Qb6 {[%emt 0:00:26]} Re7 {[%emt 0:00:31]} 48. Kh3 {[%emt 0:01:13]} Kf7 {[%emt 0:01:41]} 49. Kg2 {[%emt 0:01:31]} Ng7 {[%emt 0:01:05]} 50. Kf3 {[%emt 0:00:59]} Ne6 {[%emt 0:02:21]} 51. Qd6 {[%emt 0:00:27]} Nf8 {[%emt 0:00:49]} 52. Qb8 {[%emt 0:00:34]} Rd7 {[%emt 0:01:38]} 53. g4 {[%emt 0:00:32]} hxg4+ {[%emt 0:00:05]} 54. Kxg4 {[%emt 0:00:05]} Re7 {[%emt 0:03:00]} 55. Qc8 {[%emt 0:00:51]} Kg7 {[%emt 0:01:58]} 56. h5 {[%emt 0:01:36]} gxh5+ {[%emt 0:00:05]} 57. Kxh5 {[%emt 0:00:03]} Ne6 {[%emt 0:01:29]} 58. Kg4 {[%emt 0:00:19]} Ng5 {[%emt 0:01:46]} 59. Qd8 {[%emt 0:00:08]} Rf7 {[%emt 0:00:27]} 60. Kf5 {[%emt 0:03:16]} Nf3 {[%emt 0:02:49]} 61. Kg4 {[%emt 0:00:04]} Ng5 {[%emt 0:00:26]} 62. Kf5 1/2-1/2

[Event "XIV American Continental-ch 2019"]
[Site "Sao Paulo"]
[Date "2019.07.07"]
[Round "4.1"]
[White "Iturrizaga Bonelli, Eduardo"]
[Black "Gonzalez Vidal, Yuri"]
[Result "1/2-1/2"]
[ECO "A13"]
[WhiteElo "2625"]
[BlackElo "2547"]
[Annotator "RC"]
[PlyCount "35"]
[EventDate "2019.07.05"]
[EventType "swiss"]
[EventCountry "BRA"]
[SourceTitle "playchess.com"]
[Source "ChessBase"]
[SourceQuality "1"]
[TimeControl "40/5400+30:1800+30"]

1. c4 {[%emt 0:09:15]} e6 {[%emt 0:00:00]} 2. Nf3 {[%emt 0:01:40]} Nf6 {[%emt 0:00:27]} 3. b3 {[%emt 0:05:00]} b6 {[%emt 0:02:37]} 4. Bb2 {[%emt 0:05:36]} Bb7 {[%emt 0:00:18]} 5. e3 {[%emt 0:00:50]} c5 {[%emt 0:02:32]} 6. Be2 {[%emt 0:03:24]} Nc6 {[%emt 0:01:07]} 7. O-O {[%emt 0:06:29]} Be7 {[%emt 0:00:54]} 8. Nc3 {[%emt 0:03:15]} O-O {[%emt 0:01:52]} 9. d4 {[%emt 0:03:00]} cxd4 {[%emt 0:02:16]} 10. Nxd4 {[%emt 0:00:13]} d6 {[%emt 0:09:02]} 11. Qd2 {[%emt 0:13:40]} a6 {[%emt 0:04:19]} 12. Rfd1 {[%emt 0:00:16]} Qb8 {[%emt 0:10:52]} 13. Rac1 {[%emt 0:07:41]} Rd8 {[%emt 0:01:34]} 14. a3 {[%emt 0:13:00]} Qa7 {[%emt 0:04:00]} 15. b4 {[%emt 0:06:22]} Rac8 {[%emt 0:01:59]} 16. Nf3 {[%emt 0:00:31]} Nb8 {[%emt 0:09:13]} 17. Bd3 {[%emt 0:10:29]} Nbd7 {[%emt 0:05:18]} 18. Qe2 {[%emt 0:02:41]} 1/2-1/2